[Event "SVK-ch Open 2018"]
[Site "Banska Stiavnica"]
[Date "2018.07.13"]
[Round "7"]
[White "Vojtek, Vladimir"]
[Black "Kanakova, Natalie"]
[Result "1-0"]
[ECO "C10"]
[WhiteElo "2310"]
[BlackElo "2206"]
[Annotator "ChessBase"]
[PlyCount "315"]
[EventDate "2018.07.07"]
[EventType "swiss"]
[EventCountry "SVK"]
[SourceTitle "playchess.com"]
[Source "ChessBase"]
[SourceQuality "1"]
[TimeControl "40/5400+30:1800+30"]

1. e4 {[%emt 0:13:45]} e6 {[%emt 0:00:00]} 2. d4 {[%emt 0:00:18]} d5 {[%emt 0:00:00]} 3. Nc3 {[%emt 0:00:09]} dxe4 {[%emt 0:00:10]} 4. Nxe4 {[%emt 0:00:06]} Bd7 {[%emt 0:00:15]} 5. Nf3 {[%emt 0:00:46]} Bc6 {[%emt 0:00:14]} 6. Bd3 {[%emt 0:00:59]} Nd7 {[%emt 0:00:22]} 7. O-O {[%emt 0:01:42]} Ngf6 {[%emt 0:00:12]} 8. Qe2 {[%emt 0:02:31]} Be7 {[%emt 0:04:24]} 9. Bd2 {[%emt 0:02:05]} O-O {[%emt 0:03:24]} 10. Ng3 {[%emt 0:05:22]} Bxf3 {[%emt 0:01:35]} 11. Qxf3 {[%emt 0:00:16]} c6 {[%emt 0:00:21]} 12. Rad1 {[%emt 0:07:32]} Qb6 {[%emt 0:08:35]} 13. Bc1 {[%emt 0:08:05]} a5 {[%emt 0:03:44]} 14. Rfe1 {[%emt 0:01:49]} a4 {[%emt 0:02:34]} 15. c4 {[%emt 0:03:16]} Qc7 {[%emt 0:05:05]} 16. Ne4 {[%emt 0:08:27]} Rfd8 {[%emt 0:09:34]} 17. Bg5 {[%emt 0:05:03]} Re8 {[%emt 0:02:42]} 18. h4 {[%emt 0:06:12]} Nxe4 {[%emt 0:05:33]} 19. Qxe4 {[%emt 0:04:13]} Nf8 {[%emt 0:01:17]} 20. Bxe7 {[%emt 0:10:40]} Qxe7 {[%emt 0:00:48]} 21. d5 {[%emt 0:01:57]} cxd5 {[%emt 0:09:47]} 22. cxd5 {[%emt 0:00:06]} Qd7 {[%emt 0:01:28]} 23. Qb4 {[%emt 0:02:20]} exd5 {[%emt 0:07:44]} 24. Rxe8 {[%emt 0:00:13]} Qxe8 {[%emt 0:01:56]} 25. Qxb7 {[%emt 0:00:08]} Rb8 {[%emt 0:03:20]} 26. Qxd5 {[%emt 0:00:06]} Rxb2 {[%emt 0:00:11]} 27. Bc4 {[%emt 0:00:54]} Qe7 {[%emt 0:09:07]} 28. Qd4 {[%emt 0:04:01]} a3 {[%emt 0:01:11]} 29. g3 {[%emt 0:00:39]} h5 {[%emt 0:01:49]} 30. Qc3 {[%emt 0:02:41]} Ng6 {[%emt 0:01:47]} 31. Re1 {[%emt 0:00:48]} Qb7 {[%emt 0:09:04]} 32. Qxa3 {[%emt 0:03:40]} Rb1 {[%emt 0:00:49]} 33. Rxb1 {[%emt 0:01:40]} Qxb1+ {[%emt 0:00:04]} 34. Bf1 {[%emt 0:00:09]} Ne5 {[%emt 0:01:02]} 35. Qa8+ {[%emt 0:00:23]} Kh7 {[%emt 0:00:04]} 36. Qd5 {[%emt 0:00:49]} f6 {[%emt 0:01:23]} 37. Kg2 {[%emt 0:00:50]} Qc2 {[%emt 0:01:04]} 38. Bb5 {[%emt 0:01:13]} Kh6 {[%emt 0:01:01]} 39. a4 {[%emt 0:00:23]} Qc3 {[%emt 0:03:11]} 40. Qa8 {[%emt 0:00:38]} Kh7 {[%emt 0:01:39]} 41. Qe4+ {[%emt 0:32:44]} g6 {[%emt 0:02:28]} 42. Be2 {[%emt 0:00:00]} Kg7 {[%emt 0:01:26]} 43. Qb7+ {[%emt 0:00:00]} Kh6 {[%emt 0:01:27]} 44. Qa8 {[%emt 0:00:00]} Kg7 {[%emt 0:04:18]} 45. Qb7+ {[%emt 0:00:00]} Kh6 {[%emt 0:00:59]} 46. Qb5 {[%emt 0:00:00]} Qd4 {[%emt 0:02:21]} 47. a5 {[%emt 0:00:00]} Qe4+ {[%emt 0:02:21]} 48. Kg1 {[%emt 0:00:00]} Nc6 {[%emt 0:01:23]} 49. f3 {[%emt 0:00:00]} Qe3+ {[%emt 0:02:44]} 50. Kf1 {[%emt 0:00:00]} Nd4 {[%emt 0:00:32]} 51. Qd3 {[%emt 0:00:00]} Qc1+ {[%emt 0:00:32]} 52. Kf2 {[%emt 0:00:00]} Nf5 {[%emt 0:00:43]} 53. a6 {[%emt 0:00:00]} Qc7 {[%emt 0:03:33]} 54. f4 {[%emt 0:00:00]} Qc5+ {[%emt 0:00:32]} 55. Kg2 {[%emt 0:01:24]} Ne3+ {[%emt 0:00:18]} 56. Kh2 {[%emt 0:00:41]} Ng4+ {[%emt 0:06:00]} 57. Bxg4 {[%emt 0:00:15]} Qf2+ {[%emt 0:00:09]} 58. Kh3 {[%emt 0:02:46]} hxg4+ {[%emt 0:00:09]} 59. Kxg4 {[%emt 0:00:02]} f5+ {[%emt 0:02:23]} 60. Kh3 {[%emt 0:00:02]} Qg1 {[%emt 0:00:20]} 61. Qf3 {[%emt 0:00:11]} Qa1 {[%emt 0:00:20]} 62. Qa8 {[%emt 0:00:31]} Qf1+ {[%emt 0:00:09]} 63. Kh2 {[%emt 0:00:14]} Qe2+ {[%emt 0:00:11]} 64. Kg1 {[%emt 0:00:15]} Qe1+ {[%emt 0:00:08]} 65. Kg2 {[%emt 0:00:07]} Qe2+ {[%emt 0:00:07]} 66. Kh3 {[%emt 0:00:19]} Qf1+ {[%emt 0:00:24]} 67. Kh2 {[%emt 0:00:50]} Qe2+ {[%emt 0:00:05]} 68. Qg2 {[%emt 0:00:02]} Qxa6 {[%emt 0:00:06]} 69. Qb2 {[%emt 0:00:06]} Kh7 {[%emt 0:01:41]} 70. h5 {[%emt 0:01:44]} gxh5 {[%emt 0:02:15]} 71. Qe5 {[%emt 0:00:34]} Qg6 {[%emt 0:01:28]} 72. Qe7+ {[%emt 0:00:12]} Kh6 {[%emt 0:00:28]} 73. Kh3 {[%emt 0:00:44]} Qg4+ {[%emt 0:00:26]} 74. Kg2 {[%emt 0:00:02]} Kg6 {[%emt 0:01:12]} 75. Kf2 {[%emt 0:01:04]} Kh6 {[%emt 0:02:12]} 76. Qf6+ {[%emt 0:00:34]} Kh7 {[%emt 0:00:21]} 77. Qh4 {[%emt 0:00:59]} Qg6 {[%emt 0:00:12]} 78. Qe7+ {[%emt 0:00:17]} Kh6 {[%emt 0:00:21]} 79. Qd8 {[%emt 0:01:02]} Kh7 {[%emt 0:00:33]} 80. Qc7+ {[%emt 0:00:27]} Kh6 {[%emt 0:00:20]} 81. Qc3 {[%emt 0:01:25]} Qb6+ {[%emt 0:01:11]} 82. Kg2 {[%emt 0:00:43]} Qb7+ {[%emt 0:00:46]} 83. Kh2 {[%emt 0:00:04]} Kg6 {[%emt 0:02:31]} 84. Qh8 {[%emt 0:00:24]} Qb1 {[%emt 0:00:41]} 85. Qg8+ {[%emt 0:00:10]} Kf6 {[%emt 0:00:07]} 86. Qg5+ {[%emt 0:00:23]} Ke6 {[%emt 0:00:10]} 87. Qg6+ {[%emt 0:00:11]} Ke7 {[%emt 0:00:30]} 88. Qxh5 {[%emt 0:00:17]} Qe4 {[%emt 0:00:15]} 89. Qh7+ {[%emt 0:00:41]} Kf6 {[%emt 0:00:20]} 90. Qh8+ {[%emt 0:01:43]} Kg6 {[%emt 0:00:22]} 91. Qb2 {[%emt 0:00:44]} Kh5 {[%emt 0:01:03]} 92. Qe5 {[%emt 0:00:50]} Qd3 {[%emt 0:00:40]} 93. Qe7 {[%emt 0:01:14]} Kg4 {[%emt 0:00:42]} 94. Qg7+ {[%emt 0:01:15]} Kf3 {[%emt 0:00:14]} 95. Qb7+ {[%emt 0:00:58]} Kg4 {[%emt 0:00:18]} 96. Qg2 {[%emt 0:00:31]} Kh5 {[%emt 0:00:50]} 97. Kh3 {[%emt 0:00:24]} Qd1 {[%emt 0:00:37]} 98. Kh2 {[%emt 0:00:34]} Qd3 {[%emt 0:00:13]} 99. Qb2 {[%emt 0:00:20]} Kg4 {[%emt 0:00:25]} 100. Qg7+ {[%emt 0:00:18]} Kf3 {[%emt 0:00:22]} 101. Kh3 {[%emt 0:00:28]} Qd1 {[%emt 0:01:06]} 102. Kh4 {[%emt 0:00:38]} Qd8+ {[%emt 0:00:53]} 103. Kh5 {[%emt 0:00:07]} Qe8+ {[%emt 0:00:13]} 104. Kg5 {[%emt 0:01:14]} Kxg3 {[%emt 0:00:51]} 105. Kxf5+ {[%emt 0:00:02]} Kf3 {[%emt 0:00:16]} 106. Qc3+ {[%emt 0:00:30]} Kg2 {[%emt 0:00:19]} 107. Qe5 {[%emt 0:00:38]} Qh5+ {[%emt 0:00:28]} 108. Kf6 {[%emt 0:00:22]} Qh6+ {[%emt 0:00:27]} 109. Kf7 {[%emt 0:00:06]} Kf3 {[%emt 0:00:55]} 110. Qd5+ {[%emt 0:00:48]} Kg4 {[%emt 0:00:34]} 111. Qd1+ {[%emt 0:01:14]} Kf5 {[%emt 0:00:25]} 112. Qd5+ {[%emt 0:00:19]} Kg4 {[%emt 0:00:07]} 113. Qd7+ {[%emt 0:00:40]} Kf3 {[%emt 0:00:16]} 114. f5 {[%emt 0:00:21]} Qh7+ {[%emt 0:00:33]} 115. Ke6 {[%emt 0:00:04]} Qg8+ {[%emt 0:00:29]} 116. Kd6 {[%emt 0:00:16]} Qg3+ {[%emt 0:01:01]} 117. Kc6 {[%emt 0:00:14]} Qg5 {[%emt 0:00:32]} 118. Qe6 {[%emt 0:00:39]} Qc1+ {[%emt 0:00:21]} 119. Kd6 {[%emt 0:00:28]} Qa3+ {[%emt 0:00:13]} 120. Kd7 {[%emt 0:00:09]} Qa7+ {[%emt 0:00:58]} 121. Ke8 {[%emt 0:00:05]} Qb8+ {[%emt 0:00:20]} 122. Kf7 {[%emt 0:00:14]} Qb7+ {[%emt 0:00:22]} 123. Kg6 {[%emt 0:00:20]} Qb1 {[%emt 0:00:09]} 124. Qd5+ {[%emt 0:00:28]} Kf4 {[%emt 0:00:27]} 125. Qd4+ {[%emt 0:00:12]} Kf3 {[%emt 0:00:12]} 126. Kf6 {[%emt 0:01:19]} Qb8 {[%emt 0:00:48]} 127. Qd1+ {[%emt 0:01:17]} Kf4 {[%emt 0:00:51]} 128. Qf1+ {[%emt 0:00:11]} Ke3 {[%emt 0:00:44]} 129. Qg1+ {[%emt 0:00:46]} Kf3 {[%emt 0:00:19]} 130. Qd1+ {[%emt 0:01:05]} Kf4 {[%emt 0:00:28]} 131. Qd4+ {[%emt 0:00:04]} Kf3 {[%emt 0:00:11]} 132. Ke7 {[%emt 0:01:22]} Qb7+ {[%emt 0:01:02]} 133. Qd7 {[%emt 0:00:14]} Qb4+ {[%emt 0:00:15]} 134. Ke6 {[%emt 0:00:25]} Qe4+ {[%emt 0:00:34]} 135. Kf7 {[%emt 0:00:25]} Qc4+ {[%emt 0:00:12]} 136. Kf8 {[%emt 0:00:32]} Qb4+ {[%emt 0:00:33]} 137. Qe7 {[%emt 0:00:48]} Qb8+ {[%emt 0:00:25]} 138. Kf7 {[%emt 0:00:26]} Qb3+ {[%emt 0:00:17]} 139. Kg7 {[%emt 0:00:14]} Kf4 {[%emt 0:01:24]} 140. f6 {[%emt 0:00:12]} Qc3 {[%emt 0:00:25]} 141. Qd6+ {[%emt 0:00:19]} Kg5 {[%emt 0:00:29]} 142. Qd5+ {[%emt 0:00:41]} Kf4 {[%emt 0:00:23]} 143. Qe6 {[%emt 0:01:06]} Kg5 {[%emt 0:00:42]} 144. Qe7 {[%emt 0:00:10]} Kf5 {[%emt 0:00:31]} 145. Qd7+ {[%emt 0:00:31]} Kg5 {[%emt 0:00:06]} 146. Qf7 {[%emt 0:00:07]} Kf5 {[%emt 0:00:28]} 147. Qh5+ {[%emt 0:00:26]} Kf4 {[%emt 0:00:31]} 148. Qh6+ {[%emt 0:01:17]} Kg4 {[%emt 0:00:51]} 149. Qg6+ {[%emt 0:00:07]} Kf4 {[%emt 0:00:35]} 150. Kh7 {[%emt 0:00:05]} Qc5 {[%emt 0:00:33]} 151. f7 {[%emt 0:00:15]} Qc7 {[%emt 0:00:28]} 152. Kg8 {[%emt 0:00:35]} Qc4 {[%emt 0:00:10]} 153. Kg7 {[%emt 0:00:24]} Qc7 {[%emt 0:00:10]} 154. Kh6 {[%emt 0:01:07]} Qd8 {[%emt 0:00:38]} 155. Kg7 {[%emt 0:00:38]} Qc7 {[%emt 0:00:19]} 156. Qe6 {[%emt 0:00:19]} Kf3 {[%emt 0:00:51]} 157. Qb3+ {[%emt 0:00:21]} Ke2 {[%emt 0:00:54]} 158. Kg8 {[%emt 0:00:06]} 1-0

[Event "SVK-ch Open 2018"]
[Site "Banska Stiavnica"]
[Date "2018.07.13"]
[Round "7"]
[White "Urhegyi, Marton"]
[Black "Aczel, Gergely"]
[Result "1/2-1/2"]
[ECO "B06"]
[WhiteElo "2303"]
[BlackElo "2543"]
[Annotator "ChessBase"]
[PlyCount "120"]
[EventDate "2018.07.07"]
[EventType "swiss"]
[EventCountry "SVK"]
[SourceTitle "playchess.com"]
[Source "ChessBase"]
[SourceQuality "1"]
[TimeControl "40/5400+30:1800+30"]

1. e4 {[%emt 0:00:00]} g6 {[%emt 0:01:02]} 2. d4 {[%emt 0:00:00]} Bg7 {[%emt 0:00:05]} 3. Nf3 {[%emt 0:00:00]} d6 {[%emt 0:00:07]} 4. Bc4 {[%emt 0:00:01]} Nf6 {[%emt 0:00:55]} 5. Qe2 {[%emt 0:00:12]} O-O {[%emt 0:00:17]} 6. O-O {[%emt 0:00:11]} Bg4 {[%emt 0:17:00]} 7. Nbd2 {[%emt 0:02:27]} Nc6 {[%emt 0:00:30]} 8. c3 {[%emt 0:01:40]} e5 {[%emt 0:04:46]} 9. dxe5 {[%emt 0:21:03]} Nxe5 {[%emt 0:00:39]} 10. h3 {[%emt 0:01:52]} Nxc4 {[%emt 0:02:33]} 11. Nxc4 {[%emt 0:03:28]} Be6 {[%emt 0:02:25]} 12. Nd4 {[%emt 0:11:49]} Bxc4 {[%emt 0:33:21]} 13. Qxc4 {[%emt 0:00:14]} Nxe4 {[%emt 0:00:39]} 14. Ne6 {[%emt 0:04:05]} d5 {[%emt 0:01:25]} 15. Nxd8 {[%emt 0:00:44]} dxc4 {[%emt 0:00:03]} 16. Nxb7 {[%emt 0:00:26]} Rfb8 {[%emt 0:01:24]} 17. Na5 {[%emt 0:02:14]} Nxc3 {[%emt 0:00:25]} 18. Nxc4 {[%emt 0:03:10]} Ne2+ {[%emt 0:13:22]} 19. Kh2 {[%emt 0:04:31]} Nxc1 {[%emt 0:00:22]} 20. Raxc1 {[%emt 0:13:13]} Bxb2 {[%emt 0:00:03]} 21. Nxb2 {[%emt 0:03:10]} Rxb2 {[%emt 0:00:02]} 22. a4 {[%emt 0:06:35]} Rb4 {[%emt 0:04:06]} 23. a5 {[%emt 0:06:13]} Rb5 {[%emt 0:00:06]} 24. Rxc7 {[%emt 0:00:20]} Rxa5 {[%emt 0:00:03]} 25. g4 {[%emt 0:02:13]} Ra2 {[%emt 0:02:57]} 26. Kg3 {[%emt 0:01:22]} Rd8 {[%emt 0:00:33]} 27. Rc3 {[%emt 0:09:32]} Kg7 {[%emt 0:00:49]} 28. Rb1 {[%emt 0:00:48]} Rd7 {[%emt 0:00:26]} 29. g5 {[%emt 0:00:36]} h6 {[%emt 0:00:09]} 30. h4 {[%emt 0:00:12]} Ra5 {[%emt 0:09:40]} 31. f4 {[%emt 0:01:36]} f6 {[%emt 0:00:31]} 32. gxf6+ {[%emt 0:00:42]} Kxf6 {[%emt 0:00:01]} 33. Rb8 {[%emt 0:00:32]} Rad5 {[%emt 0:01:18]} 34. Rf8+ {[%emt 0:01:02]} Kg7 {[%emt 0:00:05]} 35. Rcc8 {[%emt 0:00:13]} Rd3+ {[%emt 0:01:26]} 36. Kg2 {[%emt 0:00:27]} a5 {[%emt 0:01:02]} 37. Rg8+ {[%emt 0:00:27]} Kf6 {[%emt 0:00:06]} 38. Rcf8+ {[%emt 0:00:53]} Rf7 {[%emt 0:00:53]} 39. Ra8 {[%emt 0:00:09]} Rb7 {[%emt 0:01:15]} 40. Ra6+ {[%emt 0:01:02]} Kf7 {[%emt 0:00:48]} 41. Rgxg6 {[%emt 0:04:38]} Rb2+ {[%emt 0:00:05]} 42. Kh1 {[%emt 0:02:55]} a4 {[%emt 0:08:44]} 43. f5 {[%emt 0:03:45]} Rd1+ {[%emt 0:00:37]} 44. Rg1 {[%emt 0:00:10]} Rd4 {[%emt 0:00:37]} 45. Rgg6 {[%emt 0:03:19]} Rxh4+ {[%emt 0:12:23]} 46. Kg1 {[%emt 0:00:07]} Re2 {[%emt 0:00:22]} 47. Ra7+ {[%emt 0:02:21]} Re7 {[%emt 0:00:15]} 48. Rxe7+ {[%emt 0:00:35]} Kxe7 {[%emt 0:00:01]} 49. Ra6 {[%emt 0:00:22]} h5 {[%emt 0:00:46]} 50. Kg2 {[%emt 0:01:17]} Rg4+ {[%emt 0:01:51]} 51. Kh3 {[%emt 0:01:29]} Rb4 {[%emt 0:00:43]} 52. Kg3 {[%emt 0:03:14]} Kf7 {[%emt 0:02:04]} 53. Kh3 {[%emt 0:01:08]} Rf4 {[%emt 0:00:33]} 54. Kg3 {[%emt 0:00:47]} Rg4+ {[%emt 0:00:03]} 55. Kh3 {[%emt 0:01:02]} Ke7 {[%emt 0:00:21]} 56. Kh2 {[%emt 0:00:32]} Kd7 {[%emt 0:02:15]} 57. f6 {[%emt 0:01:31]} h4 {[%emt 0:00:31]} 58. Ra7+ {[%emt 0:00:58]} Ke8 {[%emt 0:01:06]} 59. Re7+ {[%emt 0:00:48]} Kf8 {[%emt 0:00:18]} 60. Ra7 {[%emt 0:00:10]} Rf4 {[%emt 0:00:28]} 1/2-1/2

[Event "SVK-ch Open 2018"]
[Site "Banska Stiavnica"]
[Date "2018.07.13"]
[Round "7"]
[White "Petran, Peter"]
[Black "Bango, Lukas"]
[Result "1/2-1/2"]
[ECO "A00"]
[WhiteElo "2302"]
[BlackElo "2148"]
[Annotator "NA"]
[PlyCount "64"]
[EventDate "2018.07.07"]
[EventType "swiss"]
[EventCountry "SVK"]
[SourceTitle "playchess.com"]
[Source "ChessBase"]
[SourceQuality "1"]
[TimeControl "40/5400+30:1800+30"]

1. g3 {[%emt 0:00:00]} e5 {[%emt 0:02:35]} 2. c4 {[%emt 0:00:00]} Nf6 {[%emt 0:00:04]} 3. Bg2 {[%emt 0:00:38]} d5 {[%emt 0:00:04]} 4. d3 {[%emt 0:01:54]} Nc6 {[%emt 0:01:29]} 5. cxd5 {[%emt 0:01:25]} Nxd5 {[%emt 0:00:04]} 6. Nf3 {[%emt 0:00:05]} Be7 {[%emt 0:01:56]} 7. O-O {[%emt 0:00:13]} g5 {[%emt 0:00:06]} 8. d4 {[%emt 0:03:33]} e4 {[%emt 0:05:20]} 9. Ne5 {[%emt 0:00:09]} Bf5 {[%emt 0:15:48]} 10. Nxc6 {[%emt 0:04:24]} bxc6 {[%emt 0:00:08]} 11. Nd2 {[%emt 0:00:33]} Nf6 {[%emt 0:09:38]} 12. Qa4 {[%emt 0:07:56]} Qd7 {[%emt 0:11:36]} 13. Nc4 {[%emt 0:00:45]} c5 {[%emt 0:02:37]} 14. Qxd7+ {[%emt 0:05:59]} Nxd7 {[%emt 0:00:44]} 15. Ne3 {[%emt 0:02:29]} Bg6 {[%emt 0:01:07]} 16. Nd5 {[%emt 0:01:08]} Bd8 {[%emt 0:01:07]} 17. dxc5 {[%emt 0:01:23]} Nxc5 {[%emt 0:02:13]} 18. f4 {[%emt 0:10:09]} c6 {[%emt 0:09:27]} 19. Nc3 {[%emt 0:04:58]} gxf4 {[%emt 0:05:21]} 20. Bxf4 {[%emt 0:00:21]} Bb6 {[%emt 0:02:16]} 21. Kh1 {[%emt 0:00:21]} f5 {[%emt 0:02:56]} 22. g4 {[%emt 0:04:46]} fxg4 {[%emt 0:03:02]} 23. b4 {[%emt 0:00:34]} Ne6 {[%emt 0:04:33]} 24. Be5 {[%emt 0:00:08]} Rf8 {[%emt 0:00:03]} 25. Nxe4 {[%emt 0:00:23]} Bd4 {[%emt 0:02:17]} 26. Nd6+ {[%emt 0:22:07]} Ke7 {[%emt 0:02:46]} 27. Bxd4 {[%emt 0:00:57]} Nxd4 {[%emt 0:00:31]} 28. Nc4 {[%emt 0:01:56]} Rxf1+ {[%emt 0:04:03]} 29. Rxf1 {[%emt 0:00:04]} Rf8 {[%emt 0:00:42]} 30. Rxf8 {[%emt 0:00:56]} Kxf8 {[%emt 0:00:03]} 31. e3 {[%emt 0:01:22]} Nc2 {[%emt 0:00:06]} 32. Bxc6 {[%emt 0:01:42]} Nxb4 {[%emt 0:00:49]} 1/2-1/2

[Event "SVK-ch Open 2018"]
[Site "Banska Stiavnica"]
[Date "2018.07.13"]
[Round "7"]
[White "Stockova, Zuzana"]
[Black "Brozyna, Mateusz"]
[Result "1-0"]
[ECO "A05"]
[WhiteElo "2301"]
[BlackElo "2098"]
[Annotator "NA"]
[PlyCount "55"]
[EventDate "2018.07.07"]
[EventType "swiss"]
[EventCountry "SVK"]
[SourceTitle "playchess.com"]
[Source "ChessBase"]
[SourceQuality "1"]
[TimeControl "40/5400+30:1800+30"]

1. Nf3 {[%emt 0:00:00]} Nf6 {[%emt 0:00:00]} 2. g3 {[%emt 0:00:00]} g6 {[%emt 0:00:00]} 3. Bg2 {[%emt 0:00:00]} Bg7 {[%emt 0:00:00]} 4. O-O {[%emt 0:00:30]} O-O $11 {[%emt 0:00:00] LiveBook: 5206 Partien} 5. d3 {[%emt 0:00:17]} d6 {[%emt 0:00:04]} 6. e4 {[%emt 0:00:36]} e5 {[%emt 0:00:23]} 7. Nc3 {[%emt 0:03:47]} Nc6 {[%emt 0:02:39]} 8. h3 {[%emt 0:05:06]} Re8 {[%emt 0:06:09]} 9. Be3 {[%emt 0:03:56]} Bd7 {[%emt 0:07:54]} 10. Qd2 {[%emt 0:03:10]} a6 {[%emt 0:09:29]} 11. Bh6 {[%emt 0:02:34]} Bh8 {[%emt 0:01:13]} 12. Nh4 {[%emt 0:06:48]} Nh5 {[%emt 0:14:47]} 13. Nd5 {[%emt 0:06:26]} Nd4 {[%emt 0:05:05]} 14. c3 {[%emt 0:18:23]} Ne6 {[%emt 0:00:30]} 15. Kh2 {[%emt 0:01:27]} c6 {[%emt 0:04:13]} 16. Ne3 {[%emt 0:02:07]} Nef4 {[%emt 0:06:40]} 17. gxf4 {[%emt 0:02:48]} exf4 {[%emt 0:03:17]} 18. Nhf5 {[%emt 0:01:12]} fxe3 {[%emt 0:01:23]} 19. Nxe3 {[%emt 0:07:02]} Qc7 {[%emt 0:13:17]} 20. f4 {[%emt 0:01:28]} a5 {[%emt 0:01:22]} 21. Bf3 {[%emt 0:00:41]} Nf6 {[%emt 0:05:57]} 22. Qg2 {[%emt 0:01:24]} a4 {[%emt 0:01:47]} 23. a3 {[%emt 0:00:28]} Ra5 {[%emt 0:00:49]} 24. Kh1 {[%emt 0:00:30]} d5 {[%emt 0:03:28]} 25. e5 {[%emt 0:00:39]} Bc8 {[%emt 0:03:33]} 26. Rae1 {[%emt 0:11:49]} Nd7 {[%emt 0:01:02]} 27. d4 {[%emt 0:00:52]} f5 {[%emt 0:02:04]} 28. Nxd5 {[%emt 0:02:02]} 1-0

[Event "SVK-ch Open 2018"]
[Site "Banska Stiavnica"]
[Date "2018.07.13"]
[Round "7"]
[White "Chmiel, Marcin"]
[Black "Zatko, Gregor"]
[Result "0-1"]
[ECO "B43"]
[WhiteElo "2249"]
[BlackElo "2144"]
[Annotator "NA"]
[PlyCount "56"]
[EventDate "2018.07.07"]
[EventType "swiss"]
[EventCountry "SVK"]
[SourceTitle "playchess.com"]
[Source "ChessBase"]
[SourceQuality "1"]
[TimeControl "40/5400+30:1800+30"]

1. e4 {[%emt 0:00:00]} c5 {[%emt 0:00:00]} 2. Nf3 {[%emt 0:00:07]} e6 {[%emt 0:00:00]} 3. Nc3 {[%emt 0:00:09]} a6 {[%emt 0:00:00]} 4. d4 {[%emt 0:00:08]} cxd4 {[%emt 0:00:00]} 5. Nxd4 {[%emt 0:00:11]} Qc7 {[%emt 0:00:00]} 6. Bd3 {[%emt 0:00:12]} Nf6 {[%emt 0:00:05]} 7. O-O {[%emt 0:00:16]} d6 {[%emt 0:02:06]} 8. Qe2 {[%emt 0:01:33]} b5 {[%emt 0:06:20]} 9. a4 {[%emt 0:03:11]} bxa4 {[%emt 0:02:36]} 10. f4 {[%emt 0:02:57]} Bb7 {[%emt 0:07:36]} 11. Rxa4 {[%emt 0:04:42]} Nc6 {[%emt 0:04:47]} 12. Nxc6 {[%emt 0:03:45]} Qxc6 {[%emt 0:00:29]} 13. Rc4 {[%emt 0:05:45]} Qd7 {[%emt 0:08:04]} 14. f5 {[%emt 0:01:43]} Be7 {[%emt 0:07:31]} 15. fxe6 {[%emt 0:03:25]} fxe6 {[%emt 0:01:15]} 16. e5 {[%emt 0:05:17]} dxe5 {[%emt 0:01:26]} 17. Qxe5 {[%emt 0:02:29]} Bd6 {[%emt 0:01:30]} 18. Qe2 {[%emt 0:04:28]} O-O {[%emt 0:03:39]} 19. Rh4 {[%emt 0:11:13]} Bc5+ {[%emt 0:10:35]} 20. Kh1 {[%emt 0:00:59]} Bd4 {[%emt 0:08:38]} 21. Bc4 {[%emt 0:02:11]} Kh8 {[%emt 0:05:52]} 22. Bxe6 {[%emt 0:00:22]} Qc6 {[%emt 0:01:36]} 23. Rxd4 {[%emt 0:12:23]} Rae8 {[%emt 0:04:40]} 24. Rc4 {[%emt 0:01:41]} Qb6 {[%emt 0:02:15]} 25. Re1 {[%emt 0:05:24]} Nh5 {[%emt 0:08:12]} 26. Qxh5 {[%emt 0:12:58]} Qf2 {[%emt 0:02:37]} 27. Rg1 {[%emt 0:01:46]} Qxg2+ {[%emt 0:00:10]} 28. Rxg2 {[%emt 0:00:16]} Rf1# 0-1

[Event "SVK-ch Open 2018"]
[Site "Banska Stiavnica"]
[Date "2018.07.13"]
[Round "7"]
[White "Ruckschloss, Karol"]
[Black "Macko, Michal"]
[Result "1/2-1/2"]
[ECO "A21"]
[WhiteElo "2245"]
[BlackElo "2158"]
[Annotator "NA"]
[PlyCount "91"]
[EventDate "2018.07.07"]
[EventType "swiss"]
[EventCountry "SVK"]
[SourceTitle "playchess.com"]
[Source "ChessBase"]
[SourceQuality "1"]
[TimeControl "40/5400+30:1800+30"]

1. c4 {[%emt 0:00:00]} e5 {[%emt 0:00:00]} 2. Nc3 {[%emt 0:00:00]} Bb4 {[%emt 0:00:01]} 3. Qc2 {[%emt 0:02:31]} Nf6 {[%emt 0:02:15]} 4. g3 {[%emt 0:00:29]} O-O {[%emt 0:00:20]} 5. Bg2 {[%emt 0:00:09]} Re8 {[%emt 0:00:12]} 6. e4 {[%emt 0:05:18]} Bxc3 {[%emt 0:05:13]} 7. dxc3 {[%emt 0:04:26]} d6 {[%emt 0:00:10]} 8. Ne2 {[%emt 0:00:34]} Be6 {[%emt 0:03:32]} 9. b3 {[%emt 0:00:08]} Qc8 {[%emt 0:04:33]} 10. h3 {[%emt 0:04:07]} a6 {[%emt 0:02:19]} 11. g4 {[%emt 0:01:16]} Nfd7 {[%emt 0:03:10]} 12. Be3 {[%emt 0:02:03]} Nc6 {[%emt 0:00:06]} 13. f3 {[%emt 0:04:30]} b5 {[%emt 0:00:35]} 14. cxb5 {[%emt 0:00:22]} axb5 {[%emt 0:00:05]} 15. Rd1 {[%emt 0:04:28]} Ra6 {[%emt 0:07:36]} 16. Rd2 {[%emt 0:04:02]} Qb7 {[%emt 0:05:46]} 17. Kf2 {[%emt 0:04:41]} Rea8 {[%emt 0:00:38]} 18. Nc1 {[%emt 0:04:38]} Nf8 {[%emt 0:04:11]} 19. Rhd1 {[%emt 0:01:52]} Qb8 {[%emt 0:00:50]} 20. Kg3 {[%emt 0:00:32]} Ng6 {[%emt 0:02:10]} 21. h4 {[%emt 0:02:03]} Qd8 {[%emt 0:02:08]} 22. Rh1 {[%emt 0:01:08]} b4 {[%emt 0:03:24]} 23. Bf1 {[%emt 0:00:42]} Ra5 {[%emt 0:01:31]} 24. Bg5 {[%emt 0:03:35]} f6 {[%emt 0:03:53]} 25. Be3 {[%emt 0:00:40]} Qc8 {[%emt 0:07:02]} 26. Rhh2 {[%emt 0:01:28]} d5 {[%emt 0:01:36]} 27. exd5 {[%emt 0:00:24]} Rxd5 {[%emt 0:00:13]} 28. Rxd5 {[%emt 0:01:45]} Bxd5 {[%emt 0:00:05]} 29. cxb4 {[%emt 0:00:43]} Nxb4 {[%emt 0:03:55]} 30. Qc5 {[%emt 0:00:54]} Qb7 {[%emt 0:01:01]} 31. Bc4 {[%emt 0:03:54]} c6 {[%emt 0:01:54]} 32. Rd2 {[%emt 0:01:35]} Nf8 {[%emt 0:04:38]} 33. Qd6 {[%emt 0:12:04]} Bxc4 {[%emt 0:08:30]} 34. bxc4 {[%emt 0:00:04]} Na6 {[%emt 0:00:32]} 35. Nb3 {[%emt 0:00:27]} Qc7 {[%emt 0:03:27]} 36. Bc5 {[%emt 0:08:46]} Kf7 {[%emt 0:04:24]} 37. Qxc7+ {[%emt 0:09:18]} Nxc7 {[%emt 0:00:15]} 38. Bb6 {[%emt 0:00:47]} Nce6 {[%emt 0:01:23]} 39. Ba5 {[%emt 0:02:33]} Nd4 {[%emt 0:06:21]} 40. Nxd4 {[%emt 0:01:35]} Rxa5 {[%emt 0:00:05]} 41. Nxc6 {[%emt 0:36:33]} Rc5 {[%emt 0:30:08]} 42. Nd8+ {[%emt 0:00:33]} Ke7 {[%emt 0:00:14]} 43. Nb7 {[%emt 0:01:24]} Rxc4 {[%emt 0:00:13]} 44. Nd6 {[%emt 0:00:03]} Ra4 {[%emt 0:00:34]} 45. Nf5+ {[%emt 0:01:01]} Kf7 {[%emt 0:00:52]} 46. Nd6+ {[%emt 0:01:19]} 1/2-1/2